bitfinex-derivatives/quotes_BNBF0:USTF0_20250101
["timestamp","ask_amount","ask_price","bid_price","bid_amount"]
[1735720336790,0.26176558,703.83,702.92,0.28452739]
[1735720337595,0.26176386,703.82,702.92,0.28452739]
[1735720337791,0.26176386,703.81,702.92,0.28452739]
[1735720337989,0.26176386,703.8,702.92,0.28452739]
[1735720338190,0.26176386,703.79,702.92,0.28452739]
[1735720338396,0.26176386,703.78,702.92,0.28452739]
[1735720338694,1.05985319,703.87,702.92,0.28452739]
[1735720338895,0.26176344,703.86,702.92,0.28452739]
[1735720339693,1.48457303,703.85,702.92,0.28452739]
[1735720339896,0.26176344,703.84,702.92,0.28452739]
[1735720340094,0.2617592,703.83,702.92,0.28452739]
[1735720340293,0.2617592,703.82,702.92,0.28452739]
[1735720340497,0.2617592,703.81,702.92,0.28452739]
[1735720340699,0.2617592,703.8,702.92,0.28452739]
[1735720340897,1.48457303,703.85,702.92,0.28452739]
[1735720341199,0.26175492,703.84,702.92,0.28452739]
[1735720341395,1.05985319,703.89,702.92,0.28452739]
[1735720341600,0.26173967,703.88,702.92,0.28452739]
[1735720341798,0.26173967,703.87,702.92,0.28452739]
[1735720342001,0.26173967,703.86,702.92,0.28452739]
[1735720342200,0.26173967,703.85,702.92,0.28452739]
[1735720342401,1.05985319,703.9,702.92,0.28452739]
[1735720342801,1.48448331,703.93,702.92,0.28452739]
[1735720342802,0.26173432,703.89,702.92,0.28452739]
[1735720343001,0.26173432,703.88,702.92,0.28452739]
[1735720343197,0.26174223,703.87,702.92,0.28452739]
[1735720343502,0.26174223,703.86,702.92,0.28452739]
[1735720343703,0.26174223,703.85,702.92,0.28452739]
[1735720344003,0.26174223,703.84,702.92,0.28452739]
[1735720344200,0.26174223,703.83,702.92,0.28452739]
[1735720344503,1.48448331,703.93,702.92,0.28452739]
[1735720344704,0.261736,703.92,702.92,0.28452739]
[1735720347907,1.05985319,703.87,702.92,0.28452739]
[1735720348101,0.261736,703.86,702.92,0.28452739]
[1735720349198,0.261736,703.85,702.92,0.28452739]
[1735720349504,0.261736,703.84,702.92,0.28452739]
[1735720349705,0.261736,703.83,702.92,0.28452739]
[1735720349908,0.261736,703.82,702.92,0.28452739]
[1735720350107,0.261736,703.81,702.92,0.28452739]
[1735720350406,0.261736,703.8,702.92,0.28452739]
[1735720350706,0.26172026,703.79,702.92,0.28452739]
[1735720350905,0.26172026,703.78,702.92,0.28452739]
[1735720351106,0.26172026,703.77,702.92,0.28452739]
[1735720351306,1.05985319,703.88,702.92,0.28452739]
[1735720351502,0.26172717,703.87,702.92,0.28452739]
[1735720352807,0.26172717,703.87,702.92,1.34664419]
[1735720353909,1.05985319,703.88,702.92,1.34664419]
[1735720354112,1.05985319,703.92,702.97,1.0621168]
[1735720354409,0.26167729,703.91,702.97,1.0621168]
[1735720354609,1.05985319,703.92,702.97,1.0621168]
[1735720355309,0.26166823,703.91,703.01,1.0621168]
[1735720355509,0.26166823,703.9,703.01,1.0621168]
[1735720355704,1.05985319,704.01,703.01,1.0621168]
[1735720355910,0.26167331,704.0,703.01,1.0621168]
[1735720356411,0.26167331,704.0,703.02,1.0621168]
[1735720356610,0.26167331,703.99,703.02,1.0621168]
[1735720356811,1.05985319,704.02,703.02,1.0621168]
[1735720357513,1.05985319,704.14,703.0,1.0621168]
[1735720357707,0.26164868,704.13,703.0,1.0621168]
[1735720358613,0.26164655,704.12,703.0,1.0621168]
[1735720358809,0.64009365,704.45,702.92,0.28452739]
[1735720358810,0.26164655,704.11,702.99,1.0621168]
[1735720359013,0.26164655,704.1,702.99,1.0621168]
[1735720359211,0.26163301,704.09,702.99,1.0621168]
[1735720359411,0.26163301,704.08,702.99,1.0621168]
[1735720359612,1.05985319,704.18,702.99,1.0621168]
[1735720359812,0.26163738,704.17,702.99,1.0621168]
[1735720360116,0.26163738,704.17,703.0,1.0621168]
[1735720360319,0.26163738,704.16,703.0,1.0621168]
[1735720360518,0.26163738,704.15,703.0,1.0621168]
[1735720360710,0.26163738,704.14,703.0,1.0621168]
[1735720360915,0.26163738,704.13,703.0,1.0621168]
[1735720361112,0.2616666,704.12,703.0,1.0621168]
[1735720361315,1.48385034,704.29,702.92,0.28452739]
[1735720361316,0.2616666,704.11,702.92,0.28452739]
[1735720361517,0.2616666,704.1,702.92,0.28452739]
[1735720361719,0.2616666,704.09,702.92,0.28452739]
[1735720361918,0.2616666,704.08,702.92,0.28452739]
[1735720362119,0.2616666,704.07,702.92,0.28452739]
[1735720362417,0.2616666,704.06,702.92,0.28452739]
[1735720362620,0.2616666,704.05,702.92,0.28452739]
[1735720362921,0.2616666,704.04,702.92,0.28452739]
[1735720363121,0.2616666,704.03,702.92,0.28452739]
[1735720363322,0.2616666,704.02,702.92,0.28452739]
[1735720363621,0.2616666,704.01,702.92,0.28452739]
[1735720363816,0.2616666,704.0,702.92,0.28452739]
[1735720364022,0.2616666,703.99,702.92,0.28452739]
[1735720364222,0.2616666,703.98,702.92,0.28452739]
[1735720364523,0.2616666,703.97,702.92,0.28452739]
[1735720364822,0.2616666,703.96,702.92,0.28452739]
[1735720365015,1.05985319,704.15,702.92,0.28452739]
[1735720365327,0.26168222,704.14,702.92,0.28452739]
[1735720366015,0.26168222,704.13,702.92,0.28452739]
[1735720366221,1.05985319,704.17,702.92,0.28452739]
[1735720366523,0.26168819,704.16,702.92,0.28452739]
[1735720367118,0.26168561,704.15,702.92,0.28452739]
[1735720368123,1.05985319,704.1,702.92,0.28452739]
[1735720368327,0.26168561,704.09,702.92,0.28452739]
[1735720368925,1.05985319,704.08,702.92,0.28452739]
[1735720369123,0.26168646,704.07,702.92,0.28452739]
[1735720369725,1.05985319,704.06,702.92,0.28452739]
[1735720369925,0.26168646,704.05,702.92,0.28452739]
[1735720370821,1.05985319,704.01,702.92,0.28452739]
[1735720371020,0.26168646,704.0,702.92,0.28452739]
[1735720371724,1.32153965,704.0,702.92,0.28452739]
[1735720371921,0.26168646,703.99,702.92,0.28452739]
[1735720373034,1.32153965,703.99,702.92,0.28452739]
[1735720373332,0.26168646,703.98,702.92,0.28452739]
[1735720374332,0.26169176,703.97,702.92,0.28452739]
[1735720374534,0.26169176,703.96,702.92,0.28452739]
[1735720374731,0.26169176,703.95,702.92,0.28452739]
[1735720374930,0.26169176,703.94,702.92,0.28452739]
[1735720375130,0.26169176,703.93,702.92,0.28452739]
[1735720375329,0.26169176,703.92,702.92,0.28452739]
[1735720375534,0.26169176,703.91,702.92,0.28452739]
[1735720375833,0.26169176,703.9,702.92,0.28452739]
[1735720376132,1.05985319,704.06,702.92,0.28452739]
[1735720376133,0.26170002,703.89,702.92,0.28452739]
[1735720376330,0.26170002,703.88,702.92,0.28452739]
[1735720376536,0.26170002,703.87,702.92,0.28452739]
[1735720376735,0.26170002,703.86,702.92,0.28452739]
[1735720377035,1.05985319,704.05,702.92,0.28452739]
[1735720377235,0.26171153,704.04,702.92,0.28452739]
[1735720378238,1.05985319,704.01,702.92,0.28452739]
[1735720378439,0.26171153,704.0,702.92,0.28452739]
[1735720379230,1.32156472,704.0,702.92,0.28452739]
[1735720379430,1.05985319,704.0,702.92,0.28452739]
[1735720379637,0.26170845,703.99,702.92,0.28452739]
[1735720380940,0.26170845,703.98,702.92,0.28452739]
[1735720381142,0.26170845,703.97,702.92,0.28452739]
[1735720381343,0.2617288,703.96,702.92,0.28452739]
[1735720381538,0.2617288,703.95,702.92,0.28452739]
[1735720381835,0.2617288,703.94,702.92,0.28452739]
[1735720382041,0.2617288,703.93,702.92,0.28452739]
[1735720382238,0.2617288,703.92,702.92,0.28452739]
[1735720382438,0.2617288,703.91,702.92,0.28452739]
[1735720382637,0.2617288,703.9,702.92,0.28452739]
[1735720382841,0.2617288,703.89,702.92,0.28452739]
[1735720383042,0.2617288,703.88,702.92,0.28452739]
[1735720383241,1.05985319,703.99,702.92,0.28452739]
[1735720383441,0.26172712,703.98,702.92,0.28452739]
[1735720383941,1.05985319,703.99,702.92,0.28452739]
[1735720384243,0.26172752,703.98,702.92,0.28452739]
[1735720385242,1.05985319,703.96,702.92,0.28452739]
[1735720385544,0.26172752,703.95,702.92,0.28452739]
[1735720385838,1.05985319,703.94,702.92,0.28452739]
[1735720386042,0.26172752,703.93,702.92,0.28452739]
[1735720387240,1.05985319,703.9,702.92,0.28452739]
[1735720387445,0.26172752,703.89,702.92,0.28452739]
[1735720388147,1.05985319,703.84,702.92,0.28452739]
[1735720388346,0.26172752,703.83,702.92,0.28452739]
[1735720388940,1.05985319,703.84,702.92,0.28452739]
[1735720389245,1.48425116,704.01,702.92,0.28452739]
[1735720389246,1.05985319,703.82,702.92,0.28452739]
[1735720389447,0.26180846,703.81,702.92,0.28452739]
[1735720390646,0.26180846,703.8,702.92,0.28452739]
[1735720390841,0.26180846,703.79,702.92,0.28452739]
[1735720391045,0.26180846,703.78,702.92,0.28452739]
[1735720391247,0.26180846,703.77,702.92,0.28452739]
[1735720391446,0.26180846,703.76,702.92,0.28452739]
[1735720391645,0.26180381,703.75,702.92,0.28452739]
[1735720391846,0.26180381,703.74,702.92,0.28452739]
[1735720392147,0.26180381,703.73,702.92,0.28452739]
[1735720392347,0.26180381,703.72,702.92,0.28452739]
[1735720392547,0.26180381,703.71,702.92,0.28452739]
[1735720392843,0.26180381,703.7,702.92,0.28452739]
[1735720393046,0.26180381,703.69,702.92,0.28452739]
[1735720393246,0.26180381,703.68,702.92,0.28452739]
[1735720393448,0.26180381,703.67,702.92,0.28452739]
[1735720393747,0.26180381,703.66,702.92,0.28452739]
[1735720393942,0.26180381,703.65,702.92,0.28452739]
[1735720394148,0.26180381,703.64,702.92,0.28452739]
[1735720394348,0.26180013,703.63,702.92,0.28452739]
[1735720394647,1.48474721,703.83,702.92,0.28452739]
[1735720394648,0.26180013,703.62,702.92,0.28452739]
[1735720394848,0.26180013,703.61,702.92,0.28452739]
[1735720395043,1.48474721,703.83,702.92,0.28452739]
[1735720395248,0.26180247,703.82,702.92,0.28452739]
[1735720396850,0.26180784,703.81,702.92,0.28452739]
[1735720397049,0.26180784,703.8,702.92,0.28452739]
[1735720397248,0.26180784,703.79,702.92,0.28452739]
[1735720397449,1.48474721,703.83,702.92,0.28452739]
[1735720397652,0.26180808,703.82,702.92,0.28452739]
[1735720399458,0.26178497,703.81,702.92,0.28452739]
[1735720399654,0.26178497,703.8,702.92,0.28452739]
[1735720399853,1.48474721,703.83,702.92,0.28452739]
[1735720400153,0.26177979,703.82,702.92,0.28452739]
[1735720401055,1.48474721,703.83,702.92,0.28452739]
[1735720401458,0.26177675,703.82,702.92,0.28452739]
[1735720402050,1.48474721,703.83,702.92,0.28452739]
[1735720402250,0.26177808,703.82,702.92,0.28452739]
[1735720403359,0.26179622,703.81,702.92,0.28452739]
[1735720403559,0.26179622,703.8,702.92,0.28452739]
[1735720403857,0.26179622,703.79,702.92,0.28452739]
[1735720404056,0.26179622,703.78,702.92,0.28452739]
[1735720404257,0.26179622,703.77,702.92,0.28452739]
[1735720404458,0.26179622,703.76,702.92,0.28452739]
[1735720404660,1.48474721,703.83,702.92,0.28452739]
[1735720404861,0.26179777,703.82,702.92,0.28452739]
[1735720405560,0.26179465,703.81,702.92,0.28452739]
[1735720405760,0.26179465,703.8,702.92,0.28452739]
[1735720405956,0.26179465,703.79,702.92,0.28452739]
[1735720406161,0.26179465,703.78,702.92,0.28452739]
[1735720406363,1.48474721,703.83,702.92,0.28452739]
[1735720406662,0.26178092,703.82,702.92,0.28452739]
[1735720407255,1.48474721,703.83,702.92,0.28452739]
[1735720407458,0.26178175,703.82,702.92,0.28452739]
[1735720407660,1.48474721,703.83,702.92,0.28452739]
[1735720408460,0.26177558,703.82,702.92,0.28452739]
[1735720409960,0.26179413,703.81,702.92,0.28452739]
[1735720410260,0.26179413,703.8,702.92,0.28452739]
[1735720410461,0.26179413,703.79,702.92,0.28452739]
[1735720410663,0.26179413,703.78,702.92,0.28452739]
[1735720410861,0.26179413,703.77,702.92,0.28452739]
[1735720411162,0.26179413,703.76,702.92,0.28452739]
[1735720411354,1.48474721,703.83,702.92,0.28452739]
[1735720411355,0.26179413,703.75,702.92,0.28452739]
[1735720411559,0.26179413,703.74,702.92,0.28452739]
[1735720411861,0.26179413,703.73,702.92,0.28452739]
[1735720412161,0.26179413,703.72,702.92,0.28452739]
[1735720412361,0.26179413,703.71,702.92,0.28452739]
[1735720412562,0.26178648,703.7,702.92,0.28452739]
[1735720412756,0.26178648,703.69,702.92,0.28452739]
[1735720412957,0.26178648,703.68,702.92,0.28452739]
[1735720413161,0.26179875,703.67,702.92,0.28452739]
[1735720413363,0.26179875,703.66,702.92,0.28452739]
[1735720413661,1.05985319,703.81,702.92,0.28452739]
[1735720413861,0.26179295,703.8,702.92,0.28452739]
[1735720416163,1.05985319,703.77,702.92,0.28452739]
[1735720416463,0.26179295,703.76,702.92,0.28452739]
[1735720417360,0.26179295,703.75,702.92,0.28452739]
[1735720417561,0.26179295,703.74,702.92,0.28452739]
[1735720417760,1.05985319,703.78,702.92,0.28452739]
[1735720417961,0.26179846,703.77,702.92,0.28452739]
[1735720418565,1.05985319,703.68,702.92,0.28452739]
[1735720418761,0.26179846,703.67,702.92,0.28452739]
[1735720419567,1.05985319,703.66,702.92,0.28452739]
[1735720419767,0.26179846,703.65,702.92,0.28452739]
[1735720420362,1.05985319,703.66,702.92,0.28452739]
[1735720420566,0.26178622,703.65,702.92,0.28452739]
[1735720420766,0.26178622,703.64,702.92,0.28452739]
[1735720421061,0.26178622,703.63,702.92,0.28452739]
[1735720421265,1.05985319,703.69,702.92,0.28452739]
[1735720421467,0.26178395,703.68,702.92,0.28452739]
[1735720422066,1.05985319,703.67,702.92,0.28452739]
[1735720422265,0.26178424,703.66,702.92,0.28452739]
[1735720423168,1.48474721,703.83,702.92,0.28452739]
[1735720423169,1.32164281,703.65,702.92,0.28452739]
[1735720423467,0.26178962,703.64,702.92,0.28452739]
[1735720424465,1.32164281,703.64,702.92,0.28452739]
[1735720424664,1.05985319,703.64,702.92,0.28452739]
[1735720424869,0.26178788,703.63,702.92,0.28452739]
[1735720425369,1.05985319,703.64,702.92,0.28452739]
[1735720425571,1.05985319,703.65,702.92,0.28452739]
[1735720425770,0.26178603,703.64,702.92,0.28452739]
[1735720428571,1.05985319,703.65,702.92,0.28452739]
[1735720428770,0.26178757,703.64,702.92,0.28452739]
[1735720429269,0.26179833,703.63,702.92,0.28452739]
[1735720429469,0.26179833,703.62,702.92,0.28452739]
[1735720429671,1.05985319,703.65,702.92,0.28452739]
[1735720429969,0.26179446,703.64,702.92,0.28452739]
[1735720430672,1.05985319,703.58,702.92,0.28452739]
[1735720430871,0.26179446,703.57,702.92,0.28452739]
[1735720432069,1.05985319,703.56,702.92,0.28452739]
[1735720432372,0.26179446,703.55,702.92,0.28452739]
[1735720432973,1.05985319,703.54,702.92,0.28452739]
[1735720433272,0.26179446,703.53,702.92,0.28452739]
[1735720433666,0.2618225,703.52,702.92,0.28452739]
[1735720433870,0.2618225,703.51,702.92,0.28452739]
[1735720434073,0.2618225,703.5,702.92,0.28452739]
[1735720434273,0.2618225,703.49,702.92,0.28452739]
[1735720434473,0.2618225,703.48,702.92,0.28452739]
[1735720434672,0.2618225,703.47,702.92,0.28452739]
[1735720434874,1.05985319,703.53,702.92,0.28452739]
[1735720435068,1.48481056,703.69,702.92,0.28452739]
[1735720435069,1.32168038,703.52,702.92,0.28452739]
[1735720435274,0.26182719,703.51,702.92,0.28452739]
[1735720436375,0.26182757,703.5,702.92,0.28452739]
[1735720436575,0.26182757,703.49,702.92,0.28452739]
[1735720436778,0.26182757,703.48,702.92,0.28452739]
[1735720436978,0.26182757,703.47,702.92,0.28452739]
[1735720437270,1.05985319,703.53,702.92,0.28452739]
[1735720437476,0.26182804,703.52,702.92,0.28452739]
[1735720438271,1.32168123,703.52,702.92,0.28452739]
[1735720438475,0.26182804,703.51,702.92,0.28452739]
[1735720439076,0.26182874,703.5,702.92,0.28452739]
[1735720439271,0.26182874,703.49,702.92,0.28452739]
[1735720439472,0.26182874,703.48,702.92,0.28452739]
[1735720439673,0.26182874,703.47,702.92,0.28452739]
[1735720439873,0.26182874,703.46,702.92,0.28452739]
[1735720440075,0.26182874,703.45,702.92,0.28452739]
[1735720440276,1.05985319,703.54,702.92,0.28452739]
[1735720440472,0.26183208,703.53,702.92,0.28452739]
[1735720440871,1.32168527,703.53,702.92,0.28452739]
[1735720441175,0.26183334,703.52,702.92,0.28452739]
[1735720442170,0.26183334,703.51,702.92,0.28452739]
[1735720442375,1.05985319,703.54,702.92,0.28452739]
[1735720442576,0.26180984,703.53,702.92,0.28452739]
[1735720443178,1.05985319,703.54,702.92,0.28452739]
[1735720443478,0.26182216,703.53,702.92,0.28452739]
[1735720443679,1.05985319,703.6,702.92,0.28452739]
[1735720443982,0.26181932,703.59,702.92,0.28452739]
[1735720444183,0.26181257,703.58,702.92,0.28452739]
[1735720444485,0.26181257,703.57,702.92,0.28452739]
[1735720444679,1.05985319,703.64,702.92,0.28452739]
[1735720445479,1.48496368,703.68,702.92,0.28452739]
[1735720448886,0.26183986,703.67,702.92,0.28452739]
[1735720451286,0.26186088,703.66,702.92,0.28452739]
[1735720451487,0.26186088,703.65,702.92,0.28452739]
[1735720451680,0.26186088,703.64,702.92,0.28452739]
[1735720451987,0.26188693,703.63,702.92,0.28452739]
[1735720452288,0.26188693,703.67,702.92,0.28452739]
[1735720452586,0.26188693,703.66,702.92,0.28452739]
[1735720452785,0.26188693,703.65,702.92,0.28452739]
[1735720452986,0.26188693,703.64,702.92,0.28452739]
[1735720453184,0.26188693,703.63,702.92,0.28452739]
[1735720453385,1.32174012,703.62,702.92,0.28452739]
[1735720453583,0.26188693,703.61,702.92,0.28452739]
[1735720454386,1.05985319,703.54,702.92,0.28452739]
[1735720454584,0.26188693,703.53,702.92,0.28452739]
[1735720456589,0.26188693,703.52,702.92,0.28452739]
[1735720456784,0.26188693,703.51,702.92,0.28452739]
[1735720456982,0.26188693,703.5,702.92,0.28452739]
[1735720457190,0.26188693,703.49,702.92,0.28452739]
[1735720457383,0.26188693,703.48,702.92,0.28452739]
[1735720457586,0.26188693,703.47,702.92,0.28452739]
[1735720457790,0.26188693,703.46,702.92,0.28452739]
[1735720458090,0.26188693,703.45,702.92,0.28452739]
[1735720458289,0.26188693,703.44,702.92,0.28452739]
[1735720458489,0.26188693,703.43,702.92,0.28452739]
[1735720458690,0.26188693,703.42,702.92,0.28452739]
[1735720458890,0.26188693,703.41,702.92,0.28452739]
[1735720459086,2.54513376,703.6,702.92,0.28452739]
[1735720459291,0.26185245,703.59,702.92,0.28452739]
[1735720459889,0.26185278,703.58,702.92,0.28452739]
[1735720460091,0.26185278,703.57,702.92,0.28452739]
[1735720460390,0.26185278,703.56,702.92,0.28452739]
[1735720460590,0.26185278,703.55,702.92,0.28452739]
[1735720460793,0.26185278,703.54,702.92,0.28452739]
[1735720461091,0.26185278,703.53,702.92,0.28452739]
[1735720461392,0.26185278,703.52,702.92,0.28452739]
[1735720461592,0.26185278,703.51,702.92,0.28452739]
[1735720461788,1.48528057,703.6,702.92,0.28452739]
[1735720461994,0.26184874,703.59,702.92,0.28452739]
[1735720463589,0.26184552,703.58,702.92,0.28452739]
[1735720463789,0.26184552,703.57,702.92,0.28452739]
[1735720463992,0.26184552,703.56,702.92,0.28452739]
[1735720464195,0.26184552,703.55,702.92,0.28452739]
[1735720464498,2.54513376,703.6,702.92,0.28452739]
[1735720464795,0.26185212,703.59,702.92,0.28452739]
[1735720465398,1.05985319,703.56,702.92,0.28452739]
[1735720465598,0.26185212,703.55,702.92,0.28452739]
[1735720466698,0.26185212,703.54,702.92,0.28452739]
[1735720466999,0.26185212,703.53,702.92,0.28452739]
[1735720467194,0.26185212,703.58,702.92,0.28452739]
[1735720467399,0.26185212,703.57,702.92,0.28452739]
[1735720467596,1.05985319,703.59,702.92,0.28452739]
[1735720467597,0.26185212,703.56,702.92,0.28452739]
[1735720467800,0.26185212,703.55,702.92,0.28452739]
[1735720467997,0.26184092,703.54,702.92,0.28452739]
[1735720468201,0.26184092,703.53,702.92,0.28452739]
[1735720468395,0.26184092,703.52,702.92,0.28452739]
[1735720468602,0.26184092,703.51,702.92,0.28452739]
[1735720468803,0.26184092,703.5,702.92,0.28452739]
[1735720469001,0.26184092,703.49,702.92,0.28452739]
[1735720469200,0.26184092,703.48,702.92,0.28452739]
[1735720469401,0.26184092,703.47,702.92,0.28452739]
[1735720469602,0.26184092,703.46,702.92,0.28452739]
[1735720469802,0.26184092,703.45,702.92,0.28452739]
[1735720469996,0.26186088,703.44,702.92,0.28452739]
[1735720470204,0.26186088,703.43,702.92,0.28452739]
[1735720470503,0.26186088,703.42,702.92,0.28452739]
[1735720470702,0.26186088,703.41,702.92,0.28452739]
[1735720470902,1.05985319,703.51,702.92,0.28452739]
[1735720471098,0.26185445,703.5,702.92,0.28452739]
[1735720471302,1.32170764,703.5,702.92,0.28452739]
[1735720471502,0.26185445,703.49,702.92,0.28452739]
[1735720472402,0.26185445,703.48,702.92,0.28452739]
[1735720472603,0.26185445,703.47,702.92,0.28452739]
[1735720472904,0.26185445,703.46,702.92,0.28452739]
[1735720473105,0.26185445,703.45,702.92,0.28452739]
[1735720473404,0.26185445,703.44,702.92,0.28452739]
[1735720473605,0.26185445,703.43,702.92,0.28452739]
[1735720473806,1.05985319,703.54,702.92,0.28452739]
[1735720474005,0.26185198,703.53,702.92,0.28452739]
[1735720476008,0.26185152,703.52,702.92,0.28452739]
[1735720476306,0.26185152,703.51,702.92,0.28452739]
[1735720476605,0.26185152,703.5,702.92,0.28452739]
[1735720476802,0.26185152,703.49,702.92,0.28452739]
[1735720477005,0.26185152,703.48,702.92,0.28452739]
[1735720477203,0.26185152,703.47,702.92,0.28452739]
[1735720477404,1.05985319,703.54,702.92,0.28452739]
[1735720477604,0.26185434,703.53,702.92,0.28452739]
[1735720477902,1.05985319,703.56,702.92,0.28452739]
[1735720478105,0.26185354,703.55,702.92,0.28452739]
[1735720479108,1.05985319,703.53,702.92,0.28452739]
[1735720479308,0.26185354,703.52,702.92,0.28452739]
[1735720480706,0.26185354,703.51,702.92,0.28452739]
[1735720480904,0.26185354,703.5,702.92,0.28452739]
[1735720481107,0.26185354,703.49,702.92,0.28452739]
[1735720481304,0.26185354,703.48,702.92,0.28452739]
[1735720481508,1.05985319,703.53,702.92,0.28452739]
[1735720481705,0.2618513,703.52,702.92,0.28452739]
[1735720481910,1.05985319,703.53,702.92,0.28452739]
[1735720482110,0.26183276,703.52,702.92,0.28452739]
[1735720482613,1.48528057,703.6,702.92,0.28452739]
[1735720482614,1.05985319,703.56,702.92,0.28452739]
[1735720482806,0.26182851,703.55,702.92,0.28452739]
[1735720483305,0.2618292,703.54,702.92,0.28452739]
[1735720483510,0.2618292,703.53,702.92,0.28452739]
[1735720483710,0.2618292,703.52,702.92,0.28452739]
[1735720483911,1.05985319,703.59,702.92,0.28452739]
[1735720484107,0.26182851,703.58,702.92,0.28452739]
[1735720484312,1.3216817,703.58,702.92,0.28452739]
[1735720484513,0.26182851,703.57,702.92,0.28452739]
[1735720485614,1.05985319,703.58,702.92,0.28452739]
[1735720486508,1.48483696,703.85,702.92,0.28452739]
[1735720486509,1.05985319,703.7,702.92,0.28452739]
[1735720486706,0.26178571,703.69,702.92,0.28452739]
[1735720487511,1.05985319,703.7,702.92,0.28452739]
[1735720488014,1.05985319,703.75,702.92,0.28452739]
[1735720488215,0.2617858,703.74,702.92,0.28452739]
[1735720489014,0.2617858,703.73,702.92,0.28452739]
[1735720489212,0.2617858,703.72,702.92,0.28452739]
[1735720489415,1.05985319,703.81,702.92,0.28452739]
[1735720489616,0.26177967,703.8,702.92,0.28452739]
[1735720490118,0.26177967,703.79,702.92,0.28452739]
[1735720490316,0.26177967,703.78,702.92,0.28452739]
[1735720490519,0.26177967,703.77,702.92,0.28452739]
[1735720490720,0.26177967,703.76,702.92,0.28452739]
[1735720491015,1.05985319,703.83,702.92,0.28452739]
[1735720491220,0.26177203,703.82,702.92,0.28452739]
[1735720491723,1.48483696,703.85,702.92,0.28452739]
[1735720491920,0.26177221,703.84,702.92,0.28452739]
[1735720496421,1.48483696,703.85,702.92,0.28452739]
[1735720496618,0.26177664,703.84,702.92,0.28452739]
[1735720498625,0.26177316,703.83,702.92,0.28452739]
[1735720498822,0.26177316,703.82,702.92,0.28452739]
[1735720499025,0.26177316,703.81,702.92,0.28452739]
[1735720499324,0.26177258,703.8,702.92,0.28452739]
[1735720499920,0.26177389,703.79,702.92,0.28452739]
[1735720500118,0.26177389,703.78,702.92,0.28452739]
[1735720500329,0.26177389,703.77,702.92,0.28452739]
[1735720500526,0.26177389,703.76,702.92,0.28452739]
[1735720500722,0.26177389,703.75,702.92,0.28452739]
[1735720500921,0.26177389,703.74,702.92,0.28452739]
[1735720501126,0.26177389,703.73,702.92,0.28452739]
[1735720501326,0.26177755,703.8,702.92,0.28452739]
[1735720501521,0.26177755,703.79,702.92,0.28452739]
[1735720501727,0.26177755,703.78,702.92,0.28452739]
[1735720502028,0.26177662,703.77,702.92,0.28452739]
[1735720502230,0.26177662,703.76,702.92,0.28452739]
[1735720502428,0.26177662,703.75,702.92,0.28452739]
[1735720502729,0.26177662,703.74,702.92,0.28452739]
[1735720502928,0.26177662,703.73,702.92,0.28452739]
[1735720503223,0.26177662,703.72,702.92,0.28452739]
[1735720503428,0.26177662,703.8,702.92,0.28452739]
[1735720503622,0.2617742,703.79,702.92,0.28452739]
[1735720503822,0.2617742,703.78,702.92,0.28452739]
[1735720504022,0.26177258,703.81,702.92,0.28452739]
[1735720504023,0.2617742,703.77,702.92,0.28452739]
[1735720504222,0.2617742,703.76,702.92,0.28452739]
[1735720504427,0.2617742,703.75,702.92,0.28452739]
[1735720504628,0.2617742,703.74,702.92,0.28452739]
[1735720504923,0.26177258,703.81,702.92,0.28452739]
[1735720505129,0.26175617,703.8,702.92,0.28452739]
[1735720505529,0.26177258,703.81,702.92,0.28452739]
[1735720509031,1.05985319,704.02,702.92,0.28452739]
[1735720509231,1.48453608,703.94,702.92,0.28452739]
[1735720509535,0.26173945,703.93,702.92,0.28452739]
[1735720511531,0.2617385,703.92,702.92,0.28452739]
[1735720511831,0.2617385,703.91,702.92,0.28452739]
[1735720512031,0.2617385,703.9,702.92,0.28452739]
[1735720512232,0.2617385,703.89,702.92,0.28452739]
[1735720512432,0.2617385,703.88,702.92,0.28452739]
[1735720512634,0.2617385,703.87,702.92,0.28452739]
[1735720512828,0.2617385,703.86,702.92,0.28452739]
[1735720513133,0.2617385,703.85,702.92,0.28452739]
[1735720513331,1.48453608,703.94,702.92,0.28452739]
[1735720513332,0.2617385,703.84,702.92,0.28452739]
[1735720513527,0.2617385,703.83,702.92,0.28452739]
[1735720513733,0.2617385,703.82,702.92,0.28452739]
[1735720513933,1.48453608,703.94,702.92,0.28452739]
[1735720514230,0.26173469,703.93,702.92,0.28452739]
[1735720514829,1.48453608,703.94,702.92,0.28452739]
[1735720515031,0.26173315,703.93,702.92,0.28452739]
[1735720516843,1.48453608,703.94,702.92,0.28452739]
[1735720517042,1.05985319,703.9,702.92,0.28452739]
[1735720517238,0.26175164,703.89,702.92,0.28452739]
[1735720518346,1.32160483,703.89,702.92,0.28452739]
[1735720518537,0.26175164,703.88,702.92,0.28452739]
[1735720519437,0.26177482,703.87,702.92,0.28452739]
[1735720519639,1.05985319,703.81,702.92,0.28452739]
[1735720519840,0.26177482,703.8,702.92,0.28452739]
[1735720521247,0.26177482,703.79,702.92,0.28452739]
[1735720521550,0.26177482,703.78,702.92,0.28452739]
[1735720521748,0.26177482,703.77,702.92,0.28452739]
[1735720522047,1.32162801,703.81,702.92,0.28452739]
[1735720522243,1.05985319,703.81,702.92,0.28452739]
[1735720522443,0.26176342,703.8,702.92,0.28452739]